Cogmind - Beta 13 @@@ ROGUE MODE // 2024.04.04 @ 12:03:35 Player: DeluxeH30 Result: Self-destructed Performance ------------- Evolutions (3) 1500 Regions Visited (6) 1200 Robots Destroyed (70) 350 Value Destroyed (1780) 1780 Prototype IDs (28) 560 Alien Tech Used (0) 0 Bonus (273) 273 TOTAL SCORE: 5663 Bonus ------- Aligned with FarCom 300 Friendly Fire -27 Cogmind --------- Core Integrity 50/700 Matter 290/300 Energy 100/100 System Corruption 5% Temperature Cool (0) Movement Core (100) Ox1 Location -7/Factory Parts ------- > --- POWER (2) -------- (None) > --- PROPULSION (5) --- (None) > --- UTILITY (4) ------ Small Storage Unit Armor Integrity Analyzer Hacking Suite > --- WEAPON (2) ------- (None) > --- INVENTORY (8) ---- Micro Nuclear Core Improved Heat Sink Improved Terrain Scan Processor Cloak of Protection Improved Datajack Peak State ------------ > --- POWER ------------ Light Nuclear Core Light Nuclear Core > --- PROPULSION ------- Aluminum Leg Improved Titanium Leg Improved Gravmag System VTOL Module Improved Cesium-ion Thruster > --- UTILITY ---------- Small Storage Unit Cloak of Protection Core Shielding Hacking Suite > --- WEAPON ----------- Plasma Cannon Advanced Assault Cannon > --- INVENTORY -------- Improved Deuterium Engine Micro Nuclear Core Improved Terrain Scan Processor Armor Integrity Analyzer Microactuators Heavy Particle Cannon Improved Datajack [Rating: 46] Favorites ----------- Power Light Ion Engine Engine Light Ion Engine Power Core Light Nuclear Core Propulsion Aluminum Leg Treads Light Treads Leg Aluminum Leg Wheel Wheel Hover Unit Improved Gravmag System Flight Unit Improved Cesium-ion Thruster Utility Hacking Suite Device Cloak of Protection Storage Medium Storage Unit Processor Signal Interpreter Hackware Hacking Suite Protection Improved Light Armor Plating Weapon Mini Grenade Launcher Energy Gun Lightning Gun Energy Cannon Heavy Particle Cannon Ballistic Gun Light Assault Rifle Ballistic Cannon Assault Cannon Launcher Mini Grenade Launcher Slashing Weapon Scythe Special Melee Weapon Datajack Build | -11 -10 -10 -10 -9 -8 -7 ------- Run | Yrd Mat Min Exi Min Mat Fac Slots Evolved 6 | . . . . . 4 2 Power 1 | . . . . . . 1 Propulsion 3 | . . . . . 2 1 Utility 2 | . . . . . 2 . Weapon . | . . . . . . . Parts Attached 184 | 4 18 2 . 11 103 46 Power 21 | 1 2 . . 1 10 7 Engine 14 | 1 2 . . 1 8 2 Core 7 | . . . . . 2 5 Reactor . | . . . . . . . Propulsion 52 | . 5 . . 4 24 19 Treads 4 | . 1 . . . 3 . Leg 31 | . 2 . . 3 18 8 Wheel 11 | . 1 . . 1 1 8 Hover 1 | . . . . . . 1 Flight 5 | . 1 . . . 2 2 Utility 48 | 1 5 . . 1 29 12 Device 20 | . 1 . . . 11 8 Storage 7 | 1 2 . . . 2 2 Processor 3 | . 2 . . . . 1 Hackware 1 | . . . . . 1 . Protection 17 | . . . . 1 15 1 Artifact . | . . . . . . . Weapon 63 | 2 6 2 . 5 40 8 Energy Gun 15 | 1 2 . . 2 10 . Energy Cannon 11 | . . . . 1 6 4 Ballistic Gun 7 | 1 2 . . 1 3 . Ballistic Cannon 12 | . . . . . 9 3 Launcher 9 | . 2 2 . 1 4 . Special Weapon . | . . . . . . . Impact Weapon . | . . . . . . . Slashing Weapon 8 | . . . . . 7 1 Piercing Weapon . | . . . . . . . Special Melee Weapon 1 | . . . . . 1 . Unidentified Prototypes 3 | . . . . . 1 2 Parts Lost 66 | . 5 . . 1 33 27 Power 11 | . 2 . . . 5 4 Propulsion 29 | . 2 . . . 14 13 Utility 14 | . . . . . 7 7 Weapon 12 | . 1 . . 1 7 3 Highest Loss Streak 17 | . 5 . . 1 9 17 To Critical Strikes . | . . . . . . . Average Slot Usage (%) 94 | . 95 100 100 99 90 93 Engine 7 | . 13 14 14 14 6 1 Core 4 | . . . . . 2 12 Treads 4 | . 3 14 14 . 2 . Leg 19 | . 19 . . 17 27 24 Wheel 5 | . 2 14 14 9 . 5 Flight 1 | . 1 . . . . 2 Device 4 | . . . . . 5 11 Storage 8 | . 14 14 14 14 7 2 Processor 5 | . 12 14 14 10 . . Hackware 4 | . . . . . 6 7 Protection 6 | . . . . 3 13 6 Energy Gun 3 | . 5 10 . 12 5 1 Energy Cannon 3 | . . . . 11 3 4 Ballistic Gun 2 | . 18 10 . 2 1 . Ballistic Cannon 3 | . . . . . 4 5 Launcher 5 | . 2 7 28 1 . . Slashing Weapon 1 | . . . . . 1 1 Naked Turns . | . . . . . . . Heaviest Build 42 | 10 17 17 17 27 39 42 Greatest Support 63 | 3 20 20 20 25 50 63 Greatest Overweight (x) 8 | 3 3 . 1 1 8 4 Average Overweight (x) . | 2 . . . . . . Largest Inventory Capacity 10 | 8 10 10 10 10 10 8 Average Capacity 8 | 7 9 10 10 10 7 5 Most Carried 10 | 3 10 9 10 10 10 8 Average Carried 7 | 1 7 8 9 9 6 5 Final Capacity 10 | 8 10 10 10 10 5 8 Final Carried 10 | 2 9 8 10 10 5 5 Class Distribution -------------------- 61% | Mutant 38% | Scavenger-Mutant Dominant Class ---------------- Mutant | -10/Materials Scavenger-Mutant | -10/Mines Mutant | -10/Exiles Mutant | -9/Mines Scavenger-Mutant | -8/Materials Mutant | -7/Factory Resources | -11 -10 -10 -10 -9 -8 -7 ----------- Run | Yrd Mat Min Exi Min Mat Fac Matter Collected 2714 | 64 211 13 150 159 1375 742 Remotely 256 | . . . . . 210 46 Salvage Created 2463 | . 241 . . 215 1296 711 Parts 128 | . 22 . . 11 69 26 Haulers Intercepted 3 | . 1 . . . 2 . Recyclers Shooed 11 | . 3 . . . 3 5 Parts Field Recycled . | . . . . . . . Retrieved Matter . | . . . . . . . Parts Self-Destructed . | . . . . . . . Prevented . | . . . . . . . Kills | -11 -10 -10 -10 -9 -8 -7 ------- Run | Yrd Mat Min Exi Min Mat Fac Combat Hostiles Destroyed 43 | . 7 . . 4 25 7 Melee 4 | . . . . . 4 . Guns 18 | . 7 . . 3 8 . Cannons 17 | . . . . 1 9 7 AOE 4 | . . . . . 4 . Classes Destroyed 13 | . 5 . . 2 5 1 Worker 4 | . . . . . 4 . Builder 3 | . 1 . . . 2 . Tunneler 1 | . . . . 1 . . Hauler 3 | . 1 . . . 2 . Recycler 10 | . . . . . 3 7 Operator 1 | . . . . . 1 . Watcher 5 | . 1 . . . 3 1 Swarmer 14 | . 5 . . . 7 2 Grunt 22 | . 2 . . 3 14 3 Brawler 1 | . . . . 1 . . Sentry 4 | . . . . . 3 1 Hunter 1 | . . . . . 1 . Programmer 1 | . . . . . . 1 Best Kill Streak 6 | . 5 . . 2 6 5 Combat Bots Only 4 | . 4 . . 2 4 4 Max Kills in Single Turn 2 | . 1 . . 1 2 1 Gunslinging . | . . . . . . . Exploded 2 | . . . . . 2 . Melee 1 | . . . . . 1 . Uniques/NPCs Destroyed . | . . . . . . . Combat | -11 -10 -10 -10 -9 -8 -7 -------- Run | Yrd Mat Min Exi Min Mat Fac Hostile Shots Fired 868 | . 98 . . 27 433 310 Missed 222 | . 23 . . 5 111 83 Damage Taken 8504 | . 686 . . 373 4614 2831 Core 1431 | . 225 . . 21 535 650 Absorbed by Shields 157 | . . . . . . 157 Redirected to Shielding 292 | . . . . . 147 145 Core Remaining (%) 34 | 100 . . . 1 2 . Volleys Fired 233 | . 41 . . 16 127 49 Largest 2 | . 2 . . 2 2 2 Hottest 140 | . 60 . . 120 140 128 Shots Fired 393 | . 64 . . 32 215 82 Gun 177 | . 60 . . 23 94 . Cannon 207 | . . . . 9 116 82 Launcher 9 | . 4 . . . 5 . Special . | . . . . . . . Kinetic 216 | . 54 . . 7 104 51 Thermal 147 | . 6 . . 16 94 31 Explosive 9 | . 4 . . . 5 . Electromagnetic 21 | . . . . 9 12 . Robot Hit Streak 9 | . 5 . . 6 7 9 Robot Miss Streak 9 | . 4 . . 2 6 9 Penetration Max . | . . . . . . . Secondary Targets 3 | . 3 . . . . . Max Gunslinging Chain 1 | . 1 . . . . . Shots Hit Robots 232 | . 34 . . 18 122 58 Core Hits 124 | . 16 . . 9 60 39 Critical Kills 1 | . . . . . 1 . Critical Parts Destroyed 3 | . . . . . 3 . Critical Strikes 10 | . . . . . 8 2 Burn 1 | . . . . . 1 . Destroy 4 | . . . . . 4 . Blast 3 | . . . . . 1 2 Sever 2 | . . . . . 2 . Melee Attacks 29 | . . . . . 22 7 Impact . | . . . . . . . Slashing 29 | . . . . . 22 7 Piercing . | . . . . . . . Sneak Attacks 2 | . . . . . 2 . Combat Hostiles . | . . . . . . . Follow-up Attacks . | . . . . . . . Damage Inflicted 5855 | . 466 . . 329 3500 1560 Guns 1215 | . 311 . . 240 664 . Cannons 3296 | . . . . 79 1754 1463 Explosions 772 | . 153 . . . 546 73 Melee 518 | . . . . . 518 . Ramming 54 | . 2 . . 10 18 24 Kinetic 2662 | . 256 . . 41 1304 1061 Thermal 1624 | . 55 . . 148 946 475 Explosive 699 | . 153 . . . 546 . Electromagnetic 298 | . . . . 130 168 . Impact . | . . . . . . . Slashing 518 | . . . . . 518 . Piercing . | . . . . . . . Highest Corruption 13 | . . . . . 13 5 Average Corruption 7 | . . . . . 13 3 Corruption Purged . | . . . . . . . Corruption Blocked . | . . . . . . . Effects 37 | . . . . . 23 14 Message Errors 12 | . . . . . 7 5 Matter Fused 5 | . . . . . 4 1 Heat Flow Errors 3 | . . . . . 2 1 Energy Discharges 6 | . . . . . 1 5 Parts Rejected 1 | . . . . . 1 . Parts Fused 1 | . . . . . 1 . Data Loss (minor) 2 | . . . . . 2 . Data Loss (major) 1 | . . . . . 1 . Alerts 2 | . . . . . 1 1 Misdirections 1 | . . . . . 1 . Weapon Failures 3 | . . . . . 2 1 Overload Shots . | . . . . . . . Overflow Damage 190 | . 39 . . . 116 35 Projectiles 68 | . . . . . 58 10 Explosions 110 | . 39 . . . 46 25 Melee 12 | . . . . . 12 . Knockbacks 33 | . . . . . 17 16 Impact . | . . . . . . . Kinetic 32 | . . . . . 16 16 Secondary 1 | . . . . . 1 . Self-Inflicted Damage 137 | . . . . . 16 121 Shots 3 | . . . . . 1 2 Rammed 4 | . . . . . . 4 Targets Rammed 21 | . 1 . . 1 6 13 Kicked 17 | . 1 . . 1 6 9 Crushed . | . . . . . . . Highest Temperature 562 | . 40 . . 445 522 562 Average Temperature 142 | . 10 . . 171 112 205 Received Heat Transfer 3345 | . 156 . . 150 2007 1032 Effects 28 | . . . . 4 5 19 Shutdowns 8 | . . . . 2 1 5 Energy Bleed 5 | . . . . 1 1 3 Interference 5 | . . . . . 1 4 Matter Decay 1 | . . . . . . 1 Short Circuit 3 | . . . . 1 . 2 Damage (minor) 4 | . . . . . 2 2 Damage (major) 2 | . . . . . . 2 Siege Activations . | . . . . . . . Robots Corrupted . | . . . . . . . Combat Hostiles . | . . . . . . . Parts Fried . | . . . . . . . Impact Corruptions 1 | . . . . . 1 . Robots Melted . | . . . . . . . Combat Hostiles . | . . . . . . . Parts Melted 1 | . . . . . 1 . Heat Transferred 2921 | . 125 . . 261 1739 796 Parts Sabotaged . | . . . . . . . Parts Stolen . | . . . . . . . Parts Stripped . | . . . . . . . Power Chain Reactions . | . . . . . . . Alert | -11 -10 -10 -10 -9 -8 -7 ------- Run | Yrd Mat Min Exi Min Mat Fac Peak Influence 320 | . 136 21 . 115 320 132 Initial 85 | . . 21 . . . 85 Average 76 | . 52 21 . 54 139 22 Maximum Alert Level 1 | . . . . . 1 . Low Security (%) 82 | 100 100 100 . 100 56 100 Level 1 17 | . . . . . 43 . Level 2 . | . . . . . . . Level 3 . | . . . . . . . Level 4 . | . . . . . . . Level 5 . | . . . . . . . High Security . | . . . . . . . Max Security . | . . . . . . . Squads Dispatched 9 | . 1 . . . 4 4 Investigation 3 | . . . . . 1 2 Extermination 1 | . . . . . . 1 Reinforcement 4 | . 1 . . . 3 . Assault 1 | . . . . . . 1 Garrison . | . . . . . . . Intercept . | . . . . . . . Searches Triggered . | . . . . . . . Construction Impeded 1 | . . . . . 1 . Haulers Reinforced . | . . . . . . . Active Scanning Responses . | . . . . . . . Cargo Convoy Interrupts . | . . . . . . . Stealth | -11 -10 -10 -10 -9 -8 -7 --------- Run | Yrd Mat Min Exi Min Mat Fac Distress Signals 2 | . . . . . 2 . Communications Jammed . | . . . . . . . Distress Signals . | . . . . . . . Times Spotted 74 | . 10 . . 4 46 14 Peak Tracking Total 8 | . 4 . . 2 8 5 Tactical Retreats 3 | . . . . . 1 2 Traps | -11 -10 -10 -10 -9 -8 -7 ------- Run | Yrd Mat Min Exi Min Mat Fac Traps Triggered 9 | . . . . 1 3 5 Indirectly . | . . . . . . . Trap Hack Attempts . | . . . . . . . Triggered . | . . . . . . . Disarmed . | . . . . . . . Reprogrammed . | . . . . . . . Reused . | . . . . . . . Traps Extracted . | . . . . . . . Installed . | . . . . . . . Triggered . | . . . . . . . Machines | -11 -10 -10 -10 -9 -8 -7 ---------- Run | Yrd Mat Min Exi Min Mat Fac Machines Disabled 6 | . 1 . . . 3 2 Max in Single Turn 2 | . 1 . . . 1 2 Garrison Access 2 | . . . . . . 2 Machines Repaired . | . . . . . . . Machines Dismantled . | . . . . . . . Machines Sabotaged . | . . . . . . . Overloaded Fab Kills . | . . . . . . . Hacking | -11 -10 -10 -10 -9 -8 -7 --------- Run | Yrd Mat Min Exi Min Mat Fac Machines Accessed 19 | . 3 . 2 1 3 10 Terminals 7 | . 2 . . . 2 3 Fabricators 1 | . . . . . . 1 Repair Stations 1 | . . . . . . 1 Recycling Units 4 | . 1 . . . . 3 Scanalyzers 2 | . . . . . 1 1 Garrison Access 1 | . . . . . . 1 Total Hacks 57 | . 6 . 13 1 12 25 Successful 36 | . 2 . 13 1 5 15 Failed 21 | . 4 . . . 7 10 Catastrophic 6 | . 2 . . . 3 1 Database Lockouts . | . . . . . . . Manual 13 | . 3 . 1 . 8 1 Terminals 19 | . 4 . . . 9 6 Fabricators 2 | . . . . . . 2 Repair Stations 2 | . . . . . . 2 Recycling Units 11 | . 2 . . . . 9 Scanalyzers 8 | . . . . . 3 5 Garrison Access 1 | . . . . . . 1 Terminal Hacks 20 | . . . 13 1 2 4 Record 12 | . . . 12 . . . Prototype ID Bank 1 | . . . . . 1 . Open Door 1 | . . . . 1 . . Open DSF 1 | . . . . . . 1 Branch Access Points 1 | . . . . . . 1 Unreport Threat 2 | . . . . . 1 1 Registered Components 1 | . . . . . . 1 Derelict Proto ID Bank 1 | . . . 1 . . . Fabricator Hacks 2 | . . . . . . 2 Load Schematic 1 | . . . . . . 1 Build 1 | . . . . . . 1 Repair Station Hacks . | . . . . . . . Recycling Unit Hacks 6 | . 2 . . . . 4 Report Inventory 3 | . 1 . . . . 2 Retrieve Components 3 | . 1 . . . . 2 Scanalyzer 7 | . . . . . 3 4 Insert Component 4 | . . . . . 2 2 Analyze 3 | . . . . . 1 2 Garrison Access Hacks 1 | . . . . . . 1 Seal Access 1 | . . . . . . 1 Unauthorized Hacks . | . . . . . . . Terminals . | . . . . . . . Fabricators . | . . . . . . . Repair Stations . | . . . . . . . Recycling Units . | . . . . . . . Scanalyzers . | . . . . . . . Garrison Access . | . . . . . . . Data Cores Recovered . | . . . . . . . Used . | . . . . . . . Hacking Detections 13 | . 2 . . . 3 8 Full Trace Events 2 | . . . . . . 2 Feedback Events . | . . . . . . . Feedback Blocked . | . . . . . . . Robot Schematics Acquired . | . . . . . . . Robots Built . | . . . . . . . Authchips . | . . . . . . . Time . | . . . . . . . Total Robot Build Rating . | . . . . . . . Part Schematics Acquired 2 | . . . . . 1 1 Parts Built 2 | . . . . . . 2 Authchips . | . . . . . . . Time 24 | . . . . . . 24 Total Part Build Rating 6 | . . . . . . 6 Parts Repaired . | . . . . . . . Time . | . . . . . . . Parts Recycled . | . . . . . . . Recycled Matter . | . . . . . . . Retrieved Matter . | . . . . . . . Retrieved Components 17 | . 3 . . . . 14 Parts Scanalyzed 3 | . . . . . 1 2 Part Schematics Acquired 2 | . . . . . 1 1 Parts Damaged . | . . . . . . . Bothacking | -11 -10 -10 -10 -9 -8 -7 ------------ Run | Yrd Mat Min Exi Min Mat Fac Used RIF Installer . | . . . . . . . Robots Hacked . | . . . . . . . Non-combat . | . . . . . . . Combat . | . . . . . . . Robot Hacks Applied . | . . . . . . . Relay Couplers Released . | . . . . . . . Fabnet Peak Effective % . | . . . . . . . Robots Rewired . | . . . . . . . Allies Hacked . | . . . . . . . Hacks Repelled . | . . . . . . . Allies | -11 -10 -10 -10 -9 -8 -7 -------- Run | Yrd Mat Min Exi Min Mat Fac Total Allies . | . . . . . . . Largest Group . | . . . . . . . Highest-Rated Group . | . . . . . . . Highest-Rated Ally . | . . . . . . . Total Orders . | . . . . . . . Ally Attacks . | . . . . . . . Total Damage . | . . . . . . . Kills . | . . . . . . . Allies Corrupted . | . . . . . . . Allies Melted . | . . . . . . . Intel | -11 -10 -10 -10 -9 -8 -7 ------- Run | Yrd Mat Min Exi Min Mat Fac Robot Analysis Total . | . . . . . . . Derelict Logs Recovered 1 | . . . . 1 . . Drone Launches . | . . . . . . . Drone Recoveries . | . . . . . . . Exploration | -11 -10 -10 -10 -9 -8 -7 ------------- Run | Yrd Mat Min Exi Min Mat Fac Turns Passed 6322 | 60 599 110 1165 568 2102 1718 Spaces Moved 3576 | 33 348 46 903 299 941 1006 Core 47 | 33 . . . . 11 3 Treads 602 | . 77 46 453 . 26 . Legs 2155 | . 269 . . 224 903 759 Wheels 770 | . . . 450 75 1 244 Hover . | . . . . . . . Flight 2 | . 2 . . . . . Fastest Speed 50 | 50 120 160 95 95 115 100 Average Speed 133 | 153 129 160 127 164 132 129 Slowest Speed 450 | 200 280 160 160 190 450 260 Overloaded Moves . | . . . . . . . Propulsion Burnouts . | . . . . . . . Robots Hopped . | . . . . . . . Cave-ins Triggered 1 | . . . . . 1 . Exploration Rate (%) 41 | 4 39 10 92 72 56 17 Regions Visited 6 Branch Regions 3 Pre-discovered Areas 1 | . . . 1 . . . Known Exits Taken 4 | . 1 1 1 1 . . Unknown Exits Taken 2 | 1 . . . . 1 . Scrap Searched 2 | . . 1 . 1 . . Spaces Dug 24 | . 11 . . . 6 7 Terrain Destroyed 168 | . 32 . . 6 81 49 Melee 13 | . . . . . 6 7 Projectile 42 | . . . . 6 33 3 AOE 113 | . 32 . . . 42 39 Terrain Rammed . | . . . . . . . Walls Destroyed . | . . . . . . . Machines Disabled . | . . . . . . . Actions | -11 -10 -10 -10 -9 -8 -7 --------- Run | Yrd Mat Min Exi Min Mat Fac Total 4709 | 44 440 83 915 347 1547 1333 Wait 424 | . 5 31 10 6 251 121 Move 3570 | 32 347 45 902 298 940 1006 Hop . | . . . . . . . Pick Up 120 | 7 21 2 2 5 49 34 Fast Attach 43 | . 1 . . 4 27 11 Attach 83 | 4 10 . . 2 43 24 Detach 7 | . . . . . 5 2 Swap 59 | . 7 2 . 5 33 12 Drop 93 | 1 7 3 . 10 44 28 Fire 233 | . 41 . . 16 127 49 Melee 29 | . . . . . 22 7 Ram 4 | . . . . . . 4 Kick 17 | . 1 . . 1 6 9 Crush . | . . . . . . . Escape Stasis 26 | . . . . . . 26 Rewire 1 | . . . 1 . . . Trap . | . . . . . . . Miscellaneous . | . . . . . . . Route ------- -11/Scrapyard -10/Materials (discovered 2 exits: [*Mat] / *Min) -10/Mines -10/Exiles (discovered 2 exits: *Min x2) -9/Mines -8/Materials (discovered 2 exits: *Fac / [*Sto]) -7/Factory (discovered 2 exits: Low x2) History --------- Turn | Location | Event 19 | -11/Scrapyard | Discovered new exit (range 16) 61 | -11/Scrapyard | Entered Materials 321 | -10/Materials | Build established: Mutant 436 | -10/Materials | Discovered new exit (range 11) 478 | -10/Materials | Core integrity fell below 50% 492 | -10/Materials | Core integrity fell below 20% 531 | -10/Materials | Lost 5 parts (2p2n1w) 602 | -10/Materials | Discovered new exit (range 9) 637 | -10/Materials | Identified exit to Mines 660 | -10/Materials | Entered Mines 667 | -10/Mines | Received a Rocket Launcher from a helpful Derelict 735 | -10/Mines | Assembled infested the area 762 | -10/Mines | Discovered new exit (range 5) 767 | -10/Mines | Identified exit to Exiles 770 | -10/Mines | Entered Exiles 807 | -10/Exiles | Met 8R-AWN 838 | -10/Exiles | Met EX-HEX 882 | -10/Exiles | Met EX-BIN 905 | -10/Exiles | Aligned with FarCom system 906 | -10/Exiles | Given EX-Vault access code 948 | -10/Exiles | Opened EX-Vault 958 | -10/Exiles | Found Cloak of Protection 992 | -10/Exiles | Warned to stay clear of 0b10 Research branches 1037 | -10/Exiles | Met EX-DEC 1144 | -10/Exiles | Discovered new exit (range 14) 1169 | -10/Exiles | Identified exit to Mines 1372 | -10/Exiles | Visited The Gauntlet 1580 | -10/Exiles | Discovered exit to Mines (range 14) 1772 | -10/Exiles | Learned location of Zion (-6) 1935 | -10/Exiles | Left Exiles lab with Cloak of Protection 1935 | -10/Exiles | Entered Mines 1946 | -9/Mines | Met a Derelict bent on vengeance 2028 | -9/Mines | Met a Derelict who couldn't figure out how to use a Trap Extractor 2425 | -9/Mines | A weapon hastily lodged in a ceiling crevice suddenly fell to the ground 2443 | -9/Mines | Identified exit to Materials 2503 | -9/Mines | Entered Materials 2503 | -8/Materials | Evolved 4 slots: Propulsion x2, Utility x2 2736 | -8/Materials | Lost 9 parts (1p5n1u2w) 2817 | -8/Materials | Lost 5 parts (1p1n1u2w) 3079 | -8/Materials | Build established: Scavenger-Mutant 3560 | -8/Materials | Core integrity fell below 50% 3988 | -8/Materials | Lost 3 parts (3n) 4016 | -8/Materials | Crushed by falling debris 4016 | -8/Materials | Core integrity fell below 20% 4016 | -8/Materials | System corruption reached 10% 4055 | -8/Materials | Lost 5 parts (1p1n2u1w) 4084 | -8/Materials | Discovered new exit (range 15) 4486 | -8/Materials | Lost 8 parts (1p3n2u2w) 4582 | -8/Materials | Discovered new exit (range 15) 4605 | -8/Materials | Entered Factory 4605 | -7/Factory | Evolved 2 slots: Power x1, Propulsion x1 4725 | -7/Factory | Identified exit to Lower Caves 4939 | -7/Factory | Fabricated Hvy. Particle Cannon (x2) 5050 | -7/Factory | Build established: Mutant 5780 | -7/Factory | Lost 8 parts (1p3n3u1w) 6129 | -7/Factory | Build established: Scavenger-Mutant 6281 | -7/Factory | Core integrity fell below 50% 6312 | -7/Factory | Core integrity fell below 20% 6323 | -7/Factory | Self-destructed Last Messages --------------- 06308_ Field strength at 84. 06309_ Field strength at 67. 06310_ Field strength at 61. 06311_ Field strength at 51. 06312_ Field strength at 33. 06313_ Field strength at 23. 06314_ Field strength at 17. 06314_ Imp. Deuterium Engine destroyed. 06315_ Field strength at 1. 06316_ Stasis field depleted. 06316_ Triggered Stasis Trap. 06316_ A bubble of rippling energy engulfs the area. 06316_ Field strength at 94. 06317_ Field strength at 88. 06318_ Field strength at 70. 06319_ Field strength at 64. 06320_ Field strength at 58. 06321_ Field strength at 52. 06322_ Field strength at 41. Map ----- +----------------------------------------------------+ | ?????????????????????????????????????????????????? | | ?????????????????????????????????????????????????? | | ?????????????????????????????????????????????????? | | ?????????????????????????????????????????????????? | | ?????????????????????????????????????????????????? | | ???????????????????????????????????? "??????????? | | ???????????????????????????????????? ????????? | | ???????????????????????????????????"! ??????""? | | ????????????????????##+#########+##" ????? ? | | ????????????????????? " ????? ? | | ????????????????+ ??? ???? ? | | ????????????????# ???? ? | | ????????????????# ""% # ???#/#? | | ????????????????# !! """ # ??# #? | | ????????????????# !! """ ??# #? | | ????????????????+ #?# #? | | ????????????????? """ # "#??# #? | | ????????????????# "" """ ! """""#### ## | | ??????????? ##* "T """ # | | ??????????? "" # "#" # | | ?????????? # ### # | | ??????????? p ## "*"%###### # | | ??????????? ##### Y ## "Y" / | | ???????????????????###### #### """ ###### # | | ????????????????????????#g#??# #????###### # | | ??!?????????????????????#@#??#####+#?????????# # | | ????????????????????????# #??????# #????????# | | ????????????????????????#u#??????###????????# " | | ???????????????????????? ???????????????? + "T | | ????????????????????????"""??????????????? # | | ????????????????????????"""?????????????? # | | ????????????????????????"""????????????? ! ?### ## | | ???????????????????????"""""???????????# ????# #? | | ???????????????????????? ????????????#+?????# #? | | ?????????????????????????????????????????????? ? | | ?????????????????????????????????????????????? ? | | ?????????????????????????????????????????????? ?? | | ?????????????????????????????????????????????? ?? | | ??????????????????????????????????????????????? ?? | | ?????????????????????????????????????????????????? | | ?????????????????????????????????????????????????? | | ?????????????????????????????????????????????????? | | ?????????????????????????????????????????????????? | | ?????????????????????????????????????????????????? | | ?????????????????????????????????????????????????? | | ?????????????????????????????????????????????????? | | ?????????????????????????????????????????????????? | | ?????????????????????????????????????????????????? | | ?????????????????????????????????????????????????? | | ?????????????????????????????????????????????????? | +----------------------------------------------------+ Best States ------------- Heat Dissipation 59 Energy Generation 24 Energy Capacity 290 Matter Stores 300 Matter Capacity 300 Sight Range 16 Terrain Scan Density 10 Cloak Strength 5 Armor Coverage 300 Core Shielding 20 Propulsion Shielding 33 Weapon Shielding 66 Melee Speed Boost 20 Evasion (%) 55 Targeting Accuracy 5 Armor Integrity Analysis 30 Recoil Reduction 2 Offensive Hacking 10 Item Schematics ----------------- Hvy. Particle Cannon | -8/Materials | Scanalyzed Armor Integrity Analyzer | -7/Factory | Scanalyzed Robot Schematics ------------------ None Fabricated ------------ Hvy. Particle Cannon | x2 | -7/Factory Alien Tech Used ----------------- None Achievements -------------- None Challenges ------------ None Game ------ Seed MetaHeartCorpse Manual? 0 Play Time 01:20:35 Cumulative 23.0 hours Start 2024.04.04 @ 10:42:27 End 2024.04.04 @ 12:03:35 Sessions 1 Manual Loads 0 Difficulty Rogue Special Mode None Game No. 35 Rogue 35 Adventurer 0 Explorer 0 Win Type - Total 0 Types 0/0/0/0/0/0/0/0/0 Lore% 15 Gallery% 23 Achievement% 17 Wizard Run 0 Options --------- Layout 1 ASCII 0 Keyboard 0 Movement Mouse Keybinds 0 Fullscreen 2 Font 32/SmallcapsGlow Map View 50x35 Zoom Use 0% Tactical HUD 1 Map Filters NONE Filters NONE Steam 1 RUN: 4214ec69-d197-49e9-a11c-bc212879dd8d